fUST/lending_fUST_20251018
["ID","MTS","AMOUNT","RATE_DAILY","PERIOD"]
[391719745,1760748648710,-33922.61919982,0.00026473,2]
[391721117,1760748671071,150.0,0.00019391,2]
[391721118,1760748671478,150.0,0.00020315,2]
[391721119,1760748671958,150.0,0.00021238,2]
[391721120,1760748672373,150.0,0.00022161,2]
[391721121,1760748672763,150.0,0.00023085,2]
[391721122,1760748673598,157.63,0.00024008,2]
[391721123,1760748674092,183.9,0.00024932,2]
[391721124,1760748742938,150.0,0.00019151,2]
[391721125,1760748743410,150.0,0.00020063,2]
[391721126,1760748743821,150.0,0.00020975,2]
[391721127,1760748744217,150.0,0.00021887,2]
[391721128,1760748744611,150.0,0.00022798,2]
[391721129,1760748745048,150.0,0.0002371,2]
[391721130,1760748803413,3966.16740672,0.00019773,2]
[391721131,1760748803435,1033.83259328,0.00019773,2]
[391721132,1760748965527,1289.15,0.0002904,120]
[391721133,1760748974149,417.15472785,0.00025205,2]
[391721134,1760748994425,3025.4338,0.00029041,120]
[391721135,1760749006773,8549.02267887,0.00025205,2]
[391721136,1760749006796,183.49820281,0.00025205,2]
[391721137,1760749013444,5000.0,0.00025205,2]
[391721138,1760749036696,4816.51179719,0.00025205,2]
[391721139,1760749036718,183.48820281,0.00025205,2]
[391721140,1760749060365,5000.0,0.00025205,2]
[391721141,1760749069344,150.0,0.00019458,2]
[391721142,1760749069769,150.0,0.00020385,2]
[391721143,1760749070157,150.0,0.00021311,2]
[391721144,1760749070670,150.0,0.00022238,2]
[391721145,1760749071069,150.48,0.00023164,2]
[391721146,1760749071544,180.58,0.00024091,2]
[391721147,1760749072014,210.68,0.00025018,2]
[391721148,1760749083100,3674.78179719,0.00025205,2]
[391721149,1760749083123,1325.21820281,0.00025205,2]
[391721150,1760749095049,1000.0,0.00028493,120]
[391721151,1760749095287,1000.0,0.00028493,120]
[391721152,1760749095517,1000.0,0.00028493,120]
[391721153,1760749095759,1000.0,0.00028493,120]
[391721154,1760749095986,1000.0,0.00028493,120]
[391721155,1760749096208,1000.0,0.00028493,120]
[391721156,1760749096449,454.9603015,0.00028493,120]
[391721157,1760749105796,5000.0,0.00025205,2]
[391721158,1760749116518,-217.54017026,0.00025205,2]
[391721159,1760749120954,-191.39760187,0.00025205,2]
[391721160,1760749123418,-81.02846063,0.00025205,2]
[391721161,1760749139580,-5000.0,0.00025205,2]
[391721162,1760749141572,0.01,0.000194,2]
[391721163,1760749141595,149.99,0.000194,2]
[391721164,1760749141992,150.0,0.00020324,2]
[391721165,1760749142419,150.0,0.00021248,2]
[391721166,1760749142907,150.0,0.00022172,2]
[391721167,1760749143751,150.0,0.00023096,2]
[391721168,1760749144188,172.48,0.00024019,2]
[391721169,1760749144595,201.23,0.00024943,2]
[391721170,1760749159288,3976.47663348,0.00025205,2]
[391721177,1760749176042,4899.83336652,0.00025205,2]
[391721178,1760749176064,100.16663348,0.00025205,2]
[391721182,1760749184326,5000.0,0.00025205,2]
[391721199,1760749200090,4899.84336652,0.00025205,2]
[391721200,1760749200115,100.15663348,0.00025205,2]
[391721201,1760749202120,-167.161522,0.00025306,2]
[391721202,1760749207070,-153.46632533,0.00025205,2]
[391721203,1760749208219,5000.0,0.00025205,2]
[391721204,1760749209269,-160.84369204,0.00025205,2]
[391721205,1760749214469,150.0,0.0001942,2]
[391721206,1760749214905,150.0,0.00020345,2]
[391721207,1760749215342,150.0,0.0002127,2]
[391721208,1760749215852,150.0,0.00022195,2]
[391721209,1760749216421,150.0,0.0002312,2]
[391721210,1760749217107,164.04,0.00024044,2]
[391721211,1760749217598,191.38,0.00024969,2]
[391721212,1760749224247,3794.43336652,0.00025205,2]
[391721213,1760749224271,1205.56663348,0.00025205,2]
[391721214,1760749232237,5000.0,0.00025205,2]
[391721215,1760749241509,276.39625632,0.00021803,7]
[391721216,1760749248184,3518.0471102,0.00025205,2]
[391721217,1760749248207,1481.9528898,0.00025205,2]
[391721218,1760749256055,2636.57039557,0.00025205,2]
[391721219,1760749287453,200.0,0.00016,2]
[391721220,1760749287734,200.0,0.00016064,2]
[391721221,1760749287798,200.0,0.00016127,2]
[391721222,1760749287864,150.0,0.00019432,2]
[391721223,1760749287897,200.0,0.00016191,2]
[391721224,1760749287954,200.0,0.00016255,2]
[391721225,1760749288022,200.0,0.00016318,2]
[391721226,1760749288083,200.0,0.00016382,2]
[391721227,1760749288165,200.0,0.00016446,2]
[391721228,1760749288245,200.0,0.00016509,2]
[391721229,1760749288277,150.0,0.00020357,2]
[391721230,1760749288312,200.0,0.00016573,2]
[391721231,1760749288374,200.0,0.00016636,2]
[391721232,1760749288438,200.0,0.000167,2]
[391721233,1760749288690,150.0,0.00021282,2]
[391721234,1760749289197,200.0,0.00016764,2]
[391721235,1760749289228,150.0,0.00022207,2]
[391721236,1760749289269,200.0,0.00016827,2]
[391721237,1760749289333,200.0,0.00016891,2]
[391721238,1760749289402,200.0,0.00016955,2]
[391721239,1760749289506,200.0,0.00017018,2]
[391721240,1760749289540,200.0,0.00017082,2]
[391721241,1760749289566,300.0,0.000252,2]
[391721242,1760749289595,200.0,0.00017146,2]
[391721243,1760749289622,183.8,0.00023133,2]
[391721244,1760749289661,200.0,0.00017209,2]
[391721245,1760749289728,200.0,0.00017273,2]
[391721246,1760749289800,200.0,0.00017336,2]
[391721247,1760749289872,200.0,0.000174,2]
[391721248,1760749289942,197.68671463,0.00017464,2]
[391721249,1760749289964,2.31328537,0.00017464,2]
[391721250,1760749290003,200.0,0.00017527,2]
[391721251,1760749290065,200.0,0.00017591,2]
[391721252,1760749290104,220.56,0.00024058,2]
[391721253,1760749290206,200.0,0.00017655,2]
[391721254,1760749290291,200.0,0.00017718,2]
[391721255,1760749290371,200.0,0.00017782,2]
[391721256,1760749290435,200.0,0.00017845,2]
[391721257,1760749290502,200.0,0.00017909,2]
[391721258,1760749290563,257.32,0.00024983,2]
[391721259,1760749290588,200.0,0.00017973,2]
[391721260,1760749290644,200.0,0.00018036,2]
[391721261,1760749290714,362.17599267,0.000181,2]
[391721262,1760749319083,910.630064,0.00033868,120]
[391721263,1760749362736,150.0,0.0001943,2]
[391721264,1760749363140,170.08,0.00020355,2]
[391721265,1760749363535,255.13,0.0002128,2]
[391721266,1760749363940,340.17,0.00022205,2]
[391721267,1760749364329,425.21,0.00023131,2]
[391721268,1760749364875,510.25,0.00024056,2]
[391721269,1760749365292,595.29,0.00024981,2]
[391721270,1760749402230,-11.07786122,0.00025205,2]
[391721271,1760749402253,-288.92213878,0.00025228,2]
[391721272,1760749404463,-157.69760187,0.00025228,2]
[391721274,1760749407810,200.0,0.00016,2]
[391721275,1760749407887,200.0,0.00016263,2]
[391721276,1760749408179,200.0,0.00016525,2]
[391721277,1760749408257,200.0,0.00016788,2]
[391721278,1760749408343,200.0,0.0001705,2]
[391721279,1760749408434,200.0,0.00017313,2]
[391721280,1760749408516,200.0,0.00017575,2]
[391721281,1760749408592,200.0,0.00017838,2]
[391721282,1760749408683,288.97,0.000181,2]
[391721283,1760749432847,1574.65,0.00025205,2]
[391721285,1760749440866,150.0,0.0001954,2]
[391721286,1760749441335,219.34,0.0002047,2]
[391721287,1760749441739,329.01,0.00021401,2]
[391721288,1760749442276,438.68,0.00022331,2]
[391721289,1760749442674,548.35,0.00023261,2]
[391721290,1760749443087,658.02,0.00024192,2]
[391721291,1760749443497,767.69,0.00025122,2]
[391721292,1760749455437,3425.35,0.00025205,2]
[391721293,1760749463432,2860.71113124,0.00025205,2]
[391721294,1760749473985,300.0,0.000252,2]
[391721295,1760749519789,150.0,0.00019533,2]
[391721296,1760749520452,150.0,0.00020463,2]
[391721297,1760749520765,210.22,0.00021393,2]
[391721298,1760749521216,280.3,0.00022323,2]
[391721299,1760749521574,350.37,0.00023253,2]
[391721300,1760749521982,298.99886876,0.00024183,2]
[391721301,1760749522006,121.45113124,0.00024183,2]
[391721302,1760749522387,490.52,0.00025113,2]
[391721303,1760749527989,5000.0,0.00019773,2]
[391721304,1760749588043,300.0,0.000198,2]
[391721305,1760749597303,150.0,0.00019457,2]
[391721306,1760749598121,150.0,0.00020384,2]
[391721307,1760749598563,150.0,0.0002131,2]
[391721308,1760749598981,175.84,0.00022237,2]
[391721309,1760749599386,219.8,0.00023163,2]
[391721310,1760749599785,263.76,0.0002409,2]
[391721311,1760749600213,307.72,0.00025016,2]
[391721312,1760749612245,2670.91886876,0.00025205,2]
[391721313,1760749612267,644.56014649,0.00025205,2]
[391721314,1760749631215,417.15472785,0.00025205,2]
[391721315,1760749634866,1684.52098475,0.00025205,2]
[391721316,1760749649173,300.0,0.000195,2]
[391721317,1760749673608,150.0,0.00019437,2]
[391721318,1760749674028,150.0,0.00020363,2]
[391721319,1760749674455,150.0,0.00021289,2]
[391721320,1760749674861,150.0,0.00022214,2]
[391721321,1760749675363,150.0,0.0002314,2]
[391721322,1760749675659,155.54,0.00024065,2]
[391721323,1760749676119,181.47,0.00024991,2]
[391721324,1760749680320,179.05,0.00015205,11]
[391721325,1760749701439,5000.0,0.00025205,2]
[391721326,1760749709333,300.0,0.000195,2]
[391721327,1760749709887,387.71414091,0.00019773,2]
[391721328,1760749709910,4475.41983412,0.00019773,2]
[391721329,1760749725301,5000.0,0.00025205,2]
[391721330,1760749725674,300.0,0.000195,2]
[391721331,1760749744743,150.0,0.00019351,2]
[391721332,1760749745141,74.59016588,0.00020272,2]
[391721333,1760749745164,132.76983412,0.00020272,2]
[391721334,1760749745554,311.04,0.00021194,2]
[391721335,1760749746070,414.72,0.00022115,2]
[391721336,1760749746462,518.4,0.00023037,2]
[391721337,1760749747322,622.08,0.00023958,2]
[391721338,1760749747710,725.75,0.0002488,2]
[391721339,1760749767643,300.0,0.000252,2]
[391721340,1760749779136,300.0,0.000252,2]
[391721341,1760749791396,5000.0,0.00025205,2]
[391721342,1760749803635,166.2944247,0.00025128,2]
[391721343,1760749806840,1508.95574118,0.00025205,2]
[391721344,1760749806866,3491.04425882,0.00025205,2]
[391721345,1760749815520,1209.94331416,0.00025079,14]
[391721346,1760749823542,150.0,0.00019368,2]
[391721347,1760749824057,162.37,0.00020291,2]
[391721348,1760749824211,1464.45092003,0.00033868,120]
[391721349,1760749824448,243.55,0.00021213,2]
[391721350,1760749824930,324.74,0.00022135,2]
[391721351,1760749825413,405.92,0.00023057,2]
[391721352,1760749825799,487.1,0.0002398,2]
[391721353,1760749826211,568.29,0.00024902,2]
[391721354,1760749829128,300.0,0.000249,2]
[391721355,1760749830341,2657.05242702,0.00025205,2]
[391721356,1760749830364,2342.94757298,0.00025205,2]
[391721373,1760749831871,-480.16690811,0.00025205,2]
[391721375,1760749831881,-20.2121201,0.00025228,2]
[391721550,1760749837786,-3504.88787205,0.00025228,2]
[391721551,1760749837796,-562.5,0.00025268,2]
[391721552,1760749837806,-457.69760187,0.000253,2]
[391721553,1760749837816,-610.50931375,0.0002533,14]
[391721554,1760749837825,-1000.0,0.00025508,5]
[391721555,1760749837834,-530.55013218,0.00025805,2]
[391722167,1760749853851,5000.0,0.00025205,2]
[391722170,1760749876483,2657.06242702,0.00025205,2]
[391722171,1760749876504,1742.7598992,0.00025205,2]
[391722172,1760749899894,2903.6576625,0.00025205,2]
[391722173,1760749901529,150.0,0.00019365,2]
[391722174,1760749901941,185.6,0.00020287,2]
[391722175,1760749902494,278.4,0.00021209,2]
[391722176,1760749902825,371.2,0.00022131,2]
[391722177,1760749903282,464.0,0.00023054,2]
[391722178,1760749903810,556.8,0.00023976,2]
[391722179,1760749904207,649.6,0.00024898,2]
[391722180,1760749924204,2696.52001128,0.00025205,2]
[391722181,1760749946956,1.47242702,0.00025205,2]
[391722182,1760749946978,4998.52757298,0.00025205,2]
[391722183,1760749958281,417.15472785,0.00025205,2]
[391722184,1760749970398,4584.32769917,0.00025205,2]
[391722185,1760749970419,415.67230083,0.00025205,2]
[391722186,1760749979921,150.0,0.00019633,2]
[391722187,1760749980421,192.52,0.00020568,2]
[391722188,1760749980830,288.78,0.00021503,2]
[391722189,1760749981394,385.04,0.00022438,2]
[391722190,1760749981815,481.3,0.00023373,2]
[391722191,1760749982267,577.56,0.00024307,2]
[391722192,1760749994626,5000.0,0.00025205,2]
[391722194,1760750017230,2509.13769917,0.00025205,2]
[391722195,1760750017253,2490.86230083,0.00025205,2]
[391722196,1760750041350,5000.0,0.00025205,2]
[391722197,1760750058101,150.0,0.00019435,2]
[391722198,1760750058592,163.86,0.00020361,2]
[391722199,1760750059110,245.79,0.00021286,2]
[391722200,1760750059492,158.64311961,0.00022212,2]
[391722201,1760750059515,169.07688039,0.00022212,2]
[391722202,1760750059876,409.65,0.00023137,2]
[391722203,1760750060442,491.58,0.00024063,2]
[391722204,1760750060651,573.51,0.00024988,2]
[391722205,1760750065714,2796.54311961,0.00025205,2]
[391722206,1760750070364,-341.09344885,0.00025205,2]
[391722207,1760750072397,-304.30239813,0.00025205,2]
[391722208,1760750076439,-307.35709443,0.00025205,2]
[391722209,1760750078765,-921.77178362,0.00025205,2]
[391722210,1760750095590,1038.03586861,0.00025205,2]
[391722211,1760750131666,320.52,0.00033867,60]
[391722212,1760750137272,150.0,0.00019695,2]
[391722213,1760750137668,150.0,0.00020633,2]
[391722214,1760750137864,-162.250861,0.00025205,2]
[391722215,1760750138172,155.6,0.00021571,2]
[391722216,1760750138555,207.47,0.00022509,2]
[391722217,1760750138962,259.34,0.00023447,2]
[391722218,1760750139377,311.2,0.00024385,2]
[391722219,1760750211570,-166.68129436,0.00025205,2]
[391722220,1760750211592,-0.3139754,0.00025254,2]
[391722221,1760750213574,-344.97258785,0.00025254,2]
[391722222,1760750215079,150.0,0.00019697,2]
[391722223,1760750215449,150.0,0.00020635,2]
[391722224,1760750215846,150.0,0.00021573,2]
[391722225,1760750216234,150.0,0.00022511,2]
[391722226,1760750216617,180.83,0.00023449,2]
[391722227,1760750217105,217.0,0.00024387,2]
[391722228,1760750220128,5000.0,0.00025205,2]
[391722232,1760750271553,-18.72690785,0.00025254,2]
[391722233,1760750271576,-142.97309215,0.00025324,2]
[391722234,1760750283062,417.15472785,0.00025205,2]
[391722235,1760750289765,150.0,0.00019783,2]
[391722236,1760750290244,150.0,0.00020725,2]
[391722237,1760750291071,150.0,0.00021667,2]
[391722238,1760750291664,150.0,0.0002261,2]
[391722239,1760750291961,150.0,0.00023552,2]
[391722240,1760750292465,150.0,0.00024494,2]
[391722241,1760750320590,-165.94,0.00025436,2]
[391722242,1760750320618,-21.64181214,0.00025805,2]
[391722243,1760750320646,-3022.8755896,0.00026159,2]
[391722244,1760750320673,-1545.77722038,0.00026169,2]
[391722245,1760750320700,-21.28342294,0.00026175,2]
[391722246,1760750320899,-444.97390988,0.00026175,2]
[391722247,1760750320925,-500.0,0.00026194,2]
[391722248,1760750320951,-160.0,0.00026222,2]
[391722249,1760750320979,-207.88,0.00026252,10]
[391722250,1760750321006,-173.23,0.00026252,10]
[391722251,1760750321032,-500.0,0.00026262,2]
[391722252,1760750321060,-500.0,0.00026262,2]
[391722253,1760750322068,-5659.51810167,0.00026262,2]
[391722254,1760750322114,-10000.01,0.00026262,2]
[391722255,1760750322128,-10000.01,0.00026262,2]
[391722256,1760750323441,-10000.01,0.00026262,2]
[391722257,1760750323542,-10000.01,0.00026262,2]
[391722258,1760750323642,-4555.71582303,0.00026262,2]
[391722259,1760750323669,-237.63282706,0.00026262,2]
[391722260,1760750323811,413.31269982,0.00026252,10]
[391722261,1760750323832,452.87730018,0.00026252,10]
[391722262,1760750325643,525.91,0.00026,14]
[391722263,1760750327264,1045.280731,0.00025265,2]
[391722264,1760750330475,478.682541,0.00026224,2]
[391722265,1760750330851,478.682541,0.00025988,2]
[391722266,1760750331226,478.682541,0.00025751,2]
[391722267,1760750331603,478.682541,0.00025515,2]
[391722268,1760750332297,225.7922172,0.00025467,2]
[391722269,1760750337653,296.98,0.00026255,10]
[391722270,1760750342754,300.0,0.00026262,2]
[391722271,1760750350934,247.49,0.00026255,10]
[391722272,1760750360660,498.73080107,0.00025205,2]
[391722273,1760750361163,573.54042123,0.00025805,2]
[391722274,1760750362195,150.0,0.00019596,2]
[391722275,1760750363005,150.0,0.00020529,2]
[391722276,1760750363420,150.0,0.00021462,2]
[391722277,1760750363917,150.0,0.00022395,2]
[391722278,1760750364410,150.0,0.00023328,2]
[391722279,1760750364961,206.24,0.00026255,10]
[391722280,1760750375309,171.87,0.00026255,10]
[391722281,1760750385711,859.35,0.00026255,10]
[391722282,1760750402011,300.0,0.00026262,2]
[391722283,1760750402941,1200.0,0.00026262,2]
[391722284,1760750404142,431.21836532,0.000253,2]
[391722285,1760750404164,111.08403281,0.000253,2]
[391722286,1760750405511,223.21558224,0.00026261,2]
[391722287,1760750408598,-9252.39768513,0.00026263,2]
[391722288,1760750409424,1033.67,0.00026261,2]
[391722289,1760750412008,938.8,0.00026261,2]
[391722290,1760750413700,178.32,0.00026255,2]
[391722291,1760750414490,-7849.22,0.00026263,2]
[391722292,1760750416678,738.71087761,0.00026263,2]
[391722293,1760750419336,500.0,0.00026261,2]
[391722294,1760750420437,-8761.29912239,0.00026263,2]
[391722295,1760750420783,500.0,0.00026261,2]
[391722296,1760750421832,330.0,0.00026262,3]
[391722297,1760750422404,5446.20950734,0.00026263,2]
[391722298,1760750422426,10000.01,0.00026263,2]
[391722299,1760750422446,5300.04377624,0.00026263,2]
[391722300,1760750422932,500.0,0.00026261,2]
[391722301,1760750423121,330.0,0.00026262,3]
[391722302,1760750423819,397.89972253,0.00026262,3]
[391722303,1760750424697,330.0,0.00026262,3]
[391722304,1760750424989,713.0,0.00029041,120]
[391722305,1760750425420,330.0,0.00026262,3]
[391722306,1760750426134,534.45702368,0.00026261,2]
[391722307,1760750426168,330.0,0.00026262,3]
[391722308,1760750426952,-5671.40997021,0.00026263,2]
[391722309,1760750428318,1947.60947755,0.00026261,2]
[391722310,1760750428340,481.89052245,0.00026261,2]
[391722311,1760750429529,-7570.51,0.00026263,2]
[391722312,1760750429621,-10000.01,0.00026263,2]
[391722313,1760750429745,-1110.42714697,0.00026263,2]
[391722314,1760750429772,-237.63282706,0.00026263,2]
[391722315,1760750429798,-367.0,0.00026264,2]
[391722316,1760750429824,-334.80815102,0.00026264,2]
[391722317,1760750429852,-1928.95,0.00026265,3]
[391722318,1760750429879,-964.47,0.00026265,3]
[391722319,1760750430072,-113.4337499,0.00026265,3]
[391722320,1760750430097,500.0,0.00026261,2]
[391722321,1760750432379,500.0,0.00026261,2]
[391722322,1760750432553,-368.8062501,0.00026265,3]
[391722323,1760750432581,-241.12,0.00026265,3]
[391722324,1760750432609,-723.37,0.00026265,3]
[391722325,1760750432713,-6368.9274998,0.00026265,2]
[391722326,1760750432752,-10000.01,0.00026265,2]
[391722327,1760750433270,500.0,0.00026261,2]
[391722328,1760750435579,-9500.01,0.00026265,2]
[391722329,1760750453018,870.98400085,0.00025134,2]
[391722330,1760750454889,1546.86758551,0.00025134,2]
[391722332,1760750515712,168.9515292,0.00012631,2]
[391722334,1760750552021,456.93,0.00029041,120]
[391722335,1760750556646,-284.24825678,0.00025235,2]
[391722336,1760750601637,-200.82733388,0.00025235,2]
[391722337,1760750616571,-161.29577784,0.00025235,2]
[391722338,1760750617613,202.3443838,0.00025137,2]
[391722339,1760750620515,-550.6286315,0.00025235,2]
[391722340,1760750620543,-300.0,0.00025235,2]
[391722341,1760750620643,-5509.60523764,0.00025236,30]
[391722342,1760750620697,-10000.01,0.00025236,30]
[391722343,1760750620998,-10000.01,0.00025236,30]
[391722344,1760750621431,-10000.01,0.00025236,30]
[391722345,1760750621595,-10000.01,0.00025236,30]
[391722346,1760750621700,-10000.01,0.00025236,30]
[391722347,1760750621811,-2984.29998064,0.00025236,30]
[391722348,1760750621833,-4031.41003872,0.00025236,30]
[391722349,1760750621967,-417.15472785,0.00025236,30]
[391722350,1760750621994,-417.15472785,0.00026,30]
[391722351,1760750622021,-1562.52275005,0.00026165,2]
[391722352,1760750622048,-310.83822188,0.00026172,2]
[391722353,1760750622080,-500.0,0.00026174,2]
[391722354,1760750622116,-500.0,0.00026174,2]
[391722355,1760750622144,-500.0,0.00026174,2]
[391722356,1760750622174,-236.46566357,0.00026174,2]
[391722357,1760750622202,-363.62205993,0.00026174,2]
[391722358,1760750622310,-500.0,0.00026174,2]
[391722359,1760750622337,-382.46808926,0.00026174,2]
[391722360,1760750622368,-200.82733388,0.00026174,2]
[391722361,1760750622538,-183.66636386,0.00026175,3]
[391722362,1760750622592,-200.82733388,0.00026175,3]
[391722363,1760750622615,-7833.41915372,0.00026175,3]
[391722364,1760750622635,-10000.01,0.00026175,3]
[391722365,1760750623402,-10000.01,0.00026175,3]
[391722366,1760750635558,-150.0,0.00019876,2]
[391722367,1760750680950,-726.3,0.00026215,10]
[391722368,1760750680971,-605.25,0.00026215,10]
[391722369,1760750680994,-151.0,0.00026259,7]
[391722370,1760750681015,-151.0,0.00026259,7]
[391722371,1760750681036,-151.0,0.00026259,7]
[391722372,1760750681056,-151.0,0.00026259,7]
[391722373,1760750681076,-151.0,0.00026259,7]
[391722374,1760750681096,-1017.162809,0.00026259,7]
[391722375,1760750681126,-1017.162809,0.00026259,7]
[391722376,1760750681149,-1017.162809,0.00026259,7]
[391722377,1760750681170,-1017.162809,0.00026259,7]
[391722378,1760750681192,-151.0,0.00026259,7]
[391722379,1760750681215,-260.908782,0.00026259,7]
[391722380,1760750681236,-260.908782,0.00026259,7]
[391722381,1760750681257,-260.908782,0.00026259,7]
[391722382,1760750681283,-181.599796,0.00026261,7]
[391722383,1760750681302,-151.0,0.00026261,7]
[391722384,1760750681321,-151.0,0.00026261,7]
[391722385,1760750681340,-151.0,0.00026261,7]
[391722386,1760750681359,-151.0,0.00026261,7]
[391722387,1760750681380,-125.472622,0.00026261,7]
[391722388,1760750691529,-200.0,0.0002556,2]
[391722389,1760750722584,1000.0,0.00029041,120]
[391722391,1760750755846,150.0,0.00019443,2]
[391722392,1760750772035,-196.5,0.00026044,2]
[391722393,1760750772063,-545.24528476,0.00026155,2]
[391722394,1760750772090,-197.36444887,0.00026174,2]
[391722395,1760750772117,-800.0,0.00026175,2]
[391722396,1760750772144,-1008.39111135,0.00026175,3]
[391722397,1760750772170,-219.8428947,0.000262,2]
[391722398,1760750772199,-504.37,0.00026215,10]
[391722399,1760750772227,-420.31,0.00026215,10]
[391722400,1760750772254,-300.0,0.00026222,2]
[391722401,1760750772281,-300.0,0.00026223,2]
[391722402,1760750772308,-300.0,0.00026223,2]
[391722403,1760750772603,-350.26,0.00026215,10]
[391722404,1760750772630,-1200.0,0.00026223,2]
[391722405,1760750772658,-500.0,0.00026224,2]
[391722406,1760750772685,-500.0,0.00026224,2]
[391722407,1760750772717,-1274.42,0.00026224,2]
[391722408,1760750772808,-2350.65,0.00026224,2]
[391722409,1760750772835,-603.51681549,0.00026224,2]
[391722410,1760750772863,-500.0,0.00026224,2]
[391722411,1760750772892,-500.0,0.00026224,2]
[391722412,1760750772920,-532.53,0.00026224,2]
[391722413,1760750772948,-169.55676492,0.00026224,2]
[391722414,1760750772975,-187.50283918,0.00026224,2]
[391722415,1760750773019,-312.49716082,0.00026224,2]
[391722416,1760750773046,-500.0,0.00026224,2]
[391722417,1760750773074,-501.04164954,0.00026224,2]
[391722418,1760750773104,-500.0,0.00026224,2]
[391722419,1760750773135,-500.0,0.00026224,2]
[391722420,1760750773165,-500.0,0.00026224,2]
[391722421,1760750773195,-500.0,0.00026224,2]
[391722422,1760750773226,-500.0,0.00026224,2]
[391722423,1760750773401,-500.0,0.00026224,2]
[391722424,1760750773432,-500.0,0.00026224,2]
[391722425,1760750773569,-500.0,0.00026224,2]
[391722426,1760750773599,-500.0,0.00026224,2]
[391722427,1760750773628,-500.0,0.00026224,2]
[391722428,1760750773657,-500.0,0.00026224,2]
[391722429,1760750773688,-500.0,0.00026224,2]
[391722430,1760750773718,-500.0,0.00026224,2]
[391722431,1760750773749,-500.0,0.00026224,2]
[391722432,1760750773779,-500.0,0.00026224,2]
[391722433,1760750773809,-500.0,0.00026224,2]
[391722434,1760750773836,-500.0,0.00026224,2]
[391722435,1760750774029,-500.0,0.00026224,2]
[391722436,1760750774059,-500.0,0.00026224,2]
[391722437,1760750774088,-500.0,0.00026224,2]
[391722438,1760750774118,-500.0,0.00026224,2]
[391722439,1760750774148,-500.0,0.00026224,2]
[391722440,1760750774178,-500.0,0.00026224,2]
[391722441,1760750774208,-500.0,0.00026224,2]
[391722442,1760750774238,-500.0,0.00026224,2]
[391722443,1760750774269,-288.98560117,0.00026224,2]
[391722444,1760750774298,-500.0,0.00026224,2]
[391722445,1760750774486,-500.0,0.00026224,2]
[391722446,1760750774517,-500.0,0.00026224,2]
[391722447,1760750774549,-500.0,0.00026224,2]
[391722448,1760750774579,-500.0,0.00026224,2]
[391722449,1760750774611,-500.0,0.00026224,2]
[391722450,1760750774641,-500.0,0.00026224,2]
[391722451,1760750774669,-500.0,0.00026224,2]
[391722452,1760750774697,-500.0,0.00026224,2]
[391722453,1760750774726,-500.0,0.00026224,2]